bitfinex/quotes_ETHUSD_20240710
["timestamp","ask_amount","ask_price","bid_price","bid_amount"]
[1720569807408,0.55,3072.0,3071.0,2.3355]
[1720569807726,1.12814516,3071.9,3071.0,2.3355]
[1720569809116,1.12828814,3071.8,3071.0,2.3355]
[1720569809303,1.12828814,3071.7,3071.0,2.3355]
[1720569809499,1.12828757,3071.6,3071.0,2.3355]
[1720569809745,1.12828757,3071.5,3071.0,2.3355]
[1720569809951,1.12828757,3071.4,3071.0,2.3355]
[1720569810243,1.12828516,3071.3,3071.0,2.3355]
[1720569810543,0.55,3072.0,3071.0,2.3355]
[1720569810741,1.12828385,3071.9,3071.0,2.3355]
[1720569811047,1.12828385,3071.8,3071.0,2.3355]
[1720569811217,1.12833153,3071.7,3071.0,2.3355]
[1720569811413,1.12833153,3071.6,3071.0,2.3355]
[1720569811633,1.12833153,3071.5,3071.0,2.3355]
[1720569811832,3.0,3072.0,3071.0,2.56905]
[1720569811833,1.12833153,3071.4,3071.0,2.56905]
[1720569812035,3.0,3072.0,3071.0,2.56905]
[1720569812206,1.12823563,3071.9,3071.0,2.56905]
[1720569812403,3.0,3072.0,3071.0,2.56905]
[1720569812632,1.12823557,3071.9,3071.0,2.56905]
[1720569812839,0.5520561,3072.0,3071.0,2.56905]
[1720569812840,1.12823557,3071.8,3071.0,2.56905]
[1720569813041,1.12823557,3071.7,3071.0,2.56905]
[1720569813349,1.12823557,3071.9,3071.2,2.4136]
[1720569813557,14.6953,3072.8,3071.2,2.4136]
[1720569813558,1.1281065,3071.8,3071.2,2.4136]
[1720569813846,7.46,3072.7,3071.3,0.0651114]
[1720569814051,1.12803902,3072.6,3071.4,2.4136]
[1720569814355,1.12803902,3072.5,3071.4,2.4136]
[1720569814646,1.12803902,3072.4,3071.5,0.24136]
[1720569814846,1.12803902,3072.4,3071.4,2.4136]
[1720569815013,1.12803902,3072.3,3071.4,2.4136]
[1720569815371,1.12803902,3072.2,3071.4,2.4136]
[1720569815854,3.27115296,3072.7,3071.4,2.4136]
[1720569816014,1.70467256,3072.6,3071.4,2.4136]
[1720569816214,1.12802726,3072.5,3071.4,2.4136]
[1720569816629,0.05679797,3072.9,3071.0,0.325636]
[1720569816630,1.12802726,3072.6,3071.6,3.25557]
[1720569816837,1.12802726,3072.5,3071.8,2.2695]
[1720569817009,2.3493,3073.6,3072.0,2.2695]
[1720569817225,1.12779124,3073.4,3072.0,2.2695]
[1720569817455,1.12779124,3073.3,3072.0,2.2695]
[1720569817654,1.65245308,3073.5,3072.0,2.5029596]
[1720569817876,1.12779124,3073.4,3072.0,2.5029596]
[1720569818046,0.55,3073.3,3072.0,2.5029596]
[1720569818222,1.12779124,3073.2,3072.1,0.06509593]
[1720569818421,1.12779124,3073.4,3072.3,2.3376]
[1720569818626,1.12779124,3073.3,3072.3,2.3376]
[1720569818836,1.12779124,3073.2,3072.3,2.3376]
[1720569819050,0.27397851,3073.7,3072.3,2.3376]
[1720569819223,1.12772874,3073.1,3072.3,2.3376]
[1720569819551,1.12774007,3073.0,3072.3,2.57786959]
[1720569819858,1.12774007,3072.9,3072.3,2.57786959]
[1720569820212,1.12774007,3072.8,3072.3,2.57786959]
[1720569820420,1.12777003,3072.7,3072.3,2.3376]
[1720569820650,0.52459722,3073.6,3072.3,2.3376]
[1720569820855,1.67779229,3073.5,3072.3,2.3376]
[1720569821052,1.29557152,3073.4,3072.3,2.3376]
[1720569821364,1.12779229,3073.3,3072.3,2.3376]
[1720569821519,7.37079229,3073.2,3071.8,2.3433]
[1720569821848,4.12779229,3073.1,3071.8,2.3433]
[1720569822059,2.37167152,3073.0,3071.8,2.3433]
[1720569822211,1.12779229,3072.9,3071.8,2.3433]
[1720569822655,1.12778263,3072.8,3071.8,2.3433]
[1720569822958,1.12778263,3072.7,3071.8,2.3433]
[1720569823172,1.12778263,3073.2,3071.8,2.3433]
[1720569823452,1.12778263,3073.1,3071.8,2.3433]
[1720569823659,1.12778263,3073.1,3071.9,0.885418]
[1720569823870,1.12778263,3073.0,3071.9,0.885418]
[1720569824052,1.65247541,3073.3,3071.9,0.885418]
[1720569824252,1.12778263,3073.2,3072.0,0.3228718]
[1720569824463,1.65244641,3073.2,3072.0,0.3228718]
[1720569824624,1.12778263,3073.1,3072.0,0.3228718]
[1720569826022,1.12783658,3073.0,3072.0,0.3228718]
[1720569826363,1.12783658,3072.9,3072.0,0.3228718]
[1720569826858,1.12783658,3072.8,3072.0,0.3228718]
[1720569827219,1.12783658,3072.7,3072.0,0.3228718]
[1720569827415,1.12783658,3072.6,3072.0,0.3228718]
[1720569827658,0.25818233,3073.3,3072.0,0.3228718]
[1720569827832,1.12781899,3073.2,3072.0,0.3228718]
[1720569828035,1.12782684,3073.1,3072.0,0.3228718]
[1720569828244,1.12782684,3073.0,3072.0,0.3228718]
[1720569828662,1.12782684,3073.0,3071.8,2.3433]
[1720569828879,1.65257583,3073.0,3071.8,2.3433]
[1720569829161,0.19106897,3073.1,3071.8,2.3433]
[1720569829162,1.12782684,3072.9,3071.8,2.3433]
[1720569829463,1.12783305,3072.8,3071.8,2.3433]
[1720569829634,1.12783305,3072.7,3071.8,2.3433]
[1720569829835,1.12784872,3072.6,3071.8,2.87763]
[1720569830020,0.52471013,3073.1,3071.8,2.3433]
[1720569830225,1.12784944,3073.0,3071.8,2.3433]
[1720569830445,1.12784944,3072.9,3071.8,2.57763]
[1720569830651,1.12784944,3072.8,3071.8,2.57763]
[1720569830843,3.79528479,3073.4,3071.8,2.57763]
[1720569830844,1.12784944,3073.0,3071.9,0.257763]
[1720569831064,1.6526118,3073.3,3071.9,0.257763]
[1720569831260,1.12784944,3073.2,3071.9,0.257763]
[1720569832383,1.12784944,3073.2,3071.8,2.57763]
[1720569832680,0.55,3073.1,3071.8,2.57763]
[1720569832988,1.12789758,3073.0,3071.8,2.57763]
[1720569833181,1.12789758,3072.9,3071.8,2.57763]
[1720569833497,1.12792285,3072.8,3071.8,2.57763]
[1720569833653,1.12792285,3072.7,3071.8,2.3433]
[1720569833991,1.12792285,3072.6,3071.8,2.3433]
[1720569834283,1.12792285,3072.5,3071.8,2.3433]
[1720569834594,1.12792285,3072.4,3071.8,2.3433]
[1720569834893,1.12792285,3072.7,3071.8,2.3433]
[1720569835097,1.29319852,3072.6,3071.8,2.3433]
[1720569835394,1.12792285,3072.5,3071.8,2.3433]
[1720569836351,1.12804523,3072.4,3071.8,2.3433]
[1720569836553,1.12804523,3072.3,3071.8,2.3433]
[1720569836783,1.12804523,3072.5,3071.8,2.3433]
[1720569836992,1.12804523,3072.8,3071.8,2.3433]
[1720569837188,1.12804523,3072.7,3071.8,2.3433]
[1720569837504,1.12804523,3072.6,3071.8,2.3433]
[1720569837791,1.12804523,3072.5,3071.8,2.3433]
[1720569837951,1.51822062,3072.7,3071.8,2.3433]
[1720569838153,2.20300575,3072.6,3071.8,2.3433]
[1720569838467,1.65300575,3072.5,3071.2,2.3241]
[1720569838685,1.12804523,3072.4,3071.2,3.3360736]
[1720569838879,1.65300575,3072.4,3071.2,3.3360736]
[1720569839096,1.65300575,3072.4,3071.2,2.3241]
[1720569839097,1.12804523,3072.3,3071.2,2.3241]
[1720569839387,0.55,3072.2,3071.2,2.3241]
[1720569839593,1.12804523,3072.1,3071.2,2.3241]
[1720569839800,1.12832238,3072.0,3071.2,2.3241]
[1720569839958,1.29368723,3071.9,3071.2,2.3241]
[1720569840159,0.16536371,3071.9,3071.2,2.3241]
[1720569840456,1.12832393,3071.8,3071.2,2.3241]
[1720569840656,1.12832393,3071.7,3071.2,2.3241]
[1720569840854,2.342,3071.9,3070.5,2.4657]
[1720569841094,2.43801425,3071.8,3070.5,2.4657]
[1720569841255,1.65381425,3071.7,3070.5,2.4657]
[1720569841451,1.12840075,3071.6,3070.5,2.4657]
[1720569841893,1.29040075,3071.6,3070.5,2.4657]
[1720569842096,1.12840075,3071.5,3070.5,2.4657]
[1720569842303,1.65389579,3071.5,3070.5,2.4657]
[1720569842591,1.30999033,3071.4,3070.5,2.4657]
[1720569842765,1.12840075,3071.3,3070.5,2.4657]
[1720569843190,0.34059242,3071.2,3070.5,2.4657]
[1720569843505,1.12840075,3071.1,3070.5,2.4657]
[1720569843715,1.12840075,3071.1,3070.5,2.3729]
[1720569844003,1.12840075,3071.0,3070.5,2.3729]
[1720569844306,1.78780075,3071.5,3070.5,2.3729]
[1720569844501,1.67840075,3071.4,3070.5,2.3729]
[1720569844802,1.12840075,3071.3,3070.5,2.3729]
[1720569845307,1.12840075,3071.3,3070.5,2.61019]
[1720569845679,1.12851527,3071.2,3070.5,2.61019]
[1720569845877,1.12851527,3071.1,3070.5,2.3729]
[1720569846076,0.3405983,3071.4,3070.5,2.3729]
[1720569846277,0.3405983,3071.4,3070.6,0.06512873]
[1720569846278,1.12840503,3071.3,3070.6,0.06512873]
[1720569846486,0.3405983,3071.4,3070.6,0.06512873]
[1720569846723,0.3405983,3071.4,3070.7,2.4166]
[1720569846894,0.3405983,3071.4,3070.8,0.24817287]
[1720569847478,1.12839115,3071.3,3070.8,0.24817287]
[1720569847679,0.3405983,3071.4,3070.8,0.24817287]
[1720569850092,0.3405983,3071.4,3070.7,2.4166]
[1720569850295,1.12839962,3071.3,3070.7,2.4166]
[1720569850603,1.12844113,3071.2,3070.7,2.4166]
[1720569850904,1.12844113,3071.1,3070.7,2.4166]
[1720569851101,1.12844113,3071.3,3070.7,2.4166]
[1720569851305,1.12844113,3071.2,3070.7,2.4166]
[1720569851512,1.12844113,3071.3,3070.7,2.4166]
[1720569852200,0.3405983,3071.4,3070.8,0.06512716]
[1720569852410,0.3405983,3071.4,3070.9,2.2992]
[1720569857278,0.3405983,3071.4,3071.0,0.06511629]
[1720569857478,0.3405983,3071.4,3071.1,2.4525]
[1720569860881,2.2669,3072.2,3071.1,2.4525]
[1720569861079,0.3405232,3071.9,3071.1,2.4525]
[1720569861419,1.12824594,3071.8,3070.5,2.2758]
[1720569861623,1.67824594,3071.8,3070.5,2.2758]
[1720569861859,1.12824594,3071.7,3070.5,2.2758]
[1720569862010,0.16782459,3071.6,3070.6,0.22758]
[1720569862216,1.12824594,3071.5,3070.6,0.22758]
[1720569862740,1.12834905,3071.4,3070.6,0.22758]
[1720569862906,1.12834905,3071.3,3070.6,0.22758]
[1720569863248,0.3405232,3071.9,3070.7,2.4661]
[1720569863412,1.12823563,3071.8,3070.7,2.4661]
[1720569863608,1.12823563,3071.7,3070.7,2.4661]
[1720569863935,1.12823563,3071.6,3070.7,2.4661]
[1720569864132,1.12823563,3071.5,3070.8,0.572279]
[1720569864348,3.59053563,3071.8,3070.8,0.572279]
[1720569864521,4.12823563,3071.7,3070.7,2.4661]
[1720569864721,1.12823563,3071.6,3070.7,2.4661]
[1720569866241,1.12834629,3071.5,3070.7,2.4661]
[1720569866552,1.12834629,3071.4,3070.7,2.4661]
[1720569866733,1.12834629,3071.3,3070.7,2.4661]
[1720569866930,1.12834629,3071.5,3070.7,2.4661]
[1720569867136,1.12834629,3071.4,3070.7,2.4661]
[1720569869660,1.12836652,3071.3,3070.7,2.4661]
[1720569869853,1.12836652,3071.2,3070.7,2.4661]
[1720569870168,1.128367,3071.1,3070.7,2.71271]
[1720569870322,1.128367,3071.0,3070.7,2.4661]
[1720569870519,1.128367,3071.5,3070.7,2.4661]
[1720569870765,1.12836696,3071.4,3070.7,2.4661]
[1720569870939,1.12836696,3071.3,3070.7,2.4661]
[1720569871135,1.12836696,3071.2,3070.7,2.4661]
[1720569871336,1.12836696,3071.1,3070.7,2.4661]
[1720569871539,1.12836696,3071.5,3070.7,2.4661]
[1720569872246,2.3509,3071.4,3070.2,2.2722]
[1720569872475,1.12836696,3071.3,3070.2,2.2722]
[1720569872670,4.12836696,3071.3,3070.2,2.2722]
[1720569872942,1.12836696,3071.2,3070.2,2.2722]
[1720569873161,0.52567339,3071.1,3070.2,2.2722]
[1720569873377,1.12836696,3071.0,3070.2,2.2722]
[1720569874253,1.12836696,3071.2,3070.2,2.2722]
[1720569875147,0.90760176,3071.2,3070.2,2.2722]
[1720569875985,3.0,3071.3,3070.2,2.2722]
[1720569876287,3.55183597,3071.3,3070.3,0.22722]
[1720569876598,0.34057215,3071.2,3070.3,0.22722]
[1720569878969,0.34057215,3071.2,3070.5,2.3367]
[1720569890735,0.34057215,3071.2,3070.3,0.22722]
[1720569890736,0.34057215,3071.2,3070.2,2.2879]
[1720569890885,2.4626,3071.1,3069.9,2.3442]
[1720569891085,2.4626,3071.1,3070.0,0.23442]
[1720569891086,5.4626,3071.1,3070.0,0.23442]
[1720569894226,5.4626,3071.1,3069.9,2.3442]
[1720569899506,0.55,3071.0,3069.9,2.3442]
[1720569899840,3.55,3071.0,3069.9,2.3442]
[1720569900137,2.3816,3070.9,3069.6,2.3318]
[1720569900428,5.3816,3070.9,3069.6,2.3318]
[1720569900630,2.4575,3070.7,3069.1,9.7521]
[1720569900840,2.4575,3070.7,3069.2,0.06515366]
[1720569901006,2.4575,3070.7,3069.1,2.2821]
[1720569901007,0.55,3070.6,3069.1,2.2821]
[1720569901335,3.55,3070.6,3069.1,2.34725367]
[1720569901508,0.90075,3070.5,3069.2,0.30288897]
[1720569901711,0.55,3070.4,3069.2,0.30288897]
[1720569902529,0.90075,3070.5,3069.2,0.30288897]
[1720569902734,3.0,3070.6,3069.3,2.3257]
[1720569902892,5.4575,3070.7,3069.4,0.06515043]
[1720569903099,5.4575,3070.7,3069.5,2.3257]
[1720569903322,2.4575,3070.7,3069.6,0.55952573]
[1720569904335,2.4575,3070.7,3069.6,0.49438504]
[1720569904902,2.4575,3070.7,3069.7,0.06514068]
[1720569905318,2.4575,3070.7,3069.6,0.49438504]
[1720569905500,2.4575,3070.7,3069.7,0.28852257]
[1720569906267,2.4575,3070.7,3069.7,0.35366324]
[1720569906441,2.4575,3070.7,3069.7,0.28852257]
[1720569908256,2.4575,3070.7,3069.6,0.49438504]
[1720569908459,2.4575,3070.7,3069.5,2.3257]
[1720569910089,0.52597951,3070.6,3069.5,2.3257]
[1720569910237,3.52597951,3070.6,3069.5,2.3257]
[1720569910574,2.2942,3070.4,3069.2,2.75078897]
[1720569910878,0.80799746,3070.3,3069.2,2.75078897]
[1720569911077,0.80804231,3070.3,3069.2,2.75078897]
[1720569911252,3.80802648,3070.3,3069.2,2.75078897]
[1720569911580,3.28201795,3070.3,3069.2,2.75078897]
[1720569911785,3.0,3070.3,3069.2,2.75078897]
[1720569911938,2.4562,3070.4,3069.2,2.75078897]
[1720569912338,0.162,3070.4,3069.4,2.4479]
[1720569912652,0.162,3070.4,3069.5,2.4479]
[1720569912851,0.162,3070.4,3069.6,0.83239486]
[1720569916943,0.162,3070.4,3069.5,2.4479]
[1720569917143,0.162,3070.4,3069.2,0.30288897]
[1720569917144,2.2827,3070.3,3069.2,2.59248897]
[1720569917557,0.52602923,3070.2,3069.2,2.59248897]
[1720569917754,2.2827,3070.3,3069.2,2.59248897]
[1720569917958,0.77052778,3070.2,3069.2,2.59248897]
[1720569918165,3.77052778,3070.2,3069.2,2.59248897]
[1720569918493,3.24447,3070.2,3069.2,2.59248897]
[1720569919188,0.52608266,3070.1,3069.2,2.59248897]
[1720569919390,3.24447,3070.2,3069.2,2.59248897]
[1720569919546,3.24447,3070.2,3069.3,0.2592489]
[1720569919949,2.98738834,3070.1,3068.9,2.3885]
[1720569920165,2.4613,3070.1,3068.9,2.3885]
[1720569920495,5.4613,3070.1,3068.9,2.3885]
[1720569921569,0.52625294,3070.0,3068.9,2.3885]
[1720569921774,0.59875529,3069.9,3068.9,2.3885]
[1720569921971,1.12500823,3069.9,3068.9,2.3885]
[1720569922322,1.12495499,3069.9,3068.9,2.3885]
[1720569922466,0.59875529,3069.9,3068.9,2.3885]
[1720569923208,3.0,3070.0,3068.9,2.3885]
[1720569923403,5.4613,3070.1,3068.9,2.3885]
[1720569924508,0.52618269,3070.0,3068.9,2.3885]
[1720569924808,3.52619415,3070.0,3069.2,1.066]
[1720569924996,0.89874941,3069.9,3069.2,1.066]
[1720569927071,2.3162,3069.8,3068.4,7.47]
[1720569927274,5.3162,3069.8,3068.4,7.47]
[1720569927517,5.3162,3069.8,3069.0,1.066]
[1720569927676,3.0,3069.7,3069.0,1.066]
[1720569927876,2.3162,3069.8,3069.0,1.066]
[1720569928296,2.84782,3069.8,3069.0,1.066]
[1720569928689,3.0,3069.7,3069.0,1.066]
[1720569928920,3.0,3069.7,3068.8,1.066]
[1720569930072,3.0,3069.7,3068.5,2.2596]
[1720569930276,3.0,3069.7,3068.8,1.066]
[1720569930499,0.584782,3069.6,3068.8,1.066]
[1720569930886,1.11117897,3069.6,3068.6,1.066]
[1720569931491,1.1111911,3069.6,3068.6,1.066]
[1720569932387,1.11117074,3069.6,3068.8,1.066]
[1720569932714,3.0,3069.7,3068.8,1.066]
[1720569933831,0.52638182,3069.6,3068.8,1.066]
[1720569934720,3.0,3069.7,3068.8,1.066]
[1720569934921,0.52639927,3069.6,3068.8,1.066]
[1720569935124,1.1638212,3069.6,3068.8,1.066]
[1720569938079,0.63742193,3069.6,3068.8,1.066]
[1720569938310,1.16378953,3069.6,3068.8,1.066]
[1720569938617,0.63742193,3069.6,3068.8,1.066]
[1720569938807,1.16380828,3069.6,3068.8,1.066]
[1720569939313,0.41638083,3069.5,3068.8,1.066]
[1720569940822,2.4388,3069.4,3068.6,1.066]
[1720569941022,5.4388,3069.4,3068.6,1.066]
[1720569941627,5.4388,3069.4,3068.4,1.066]
[1720569941943,6.20033813,3069.4,3068.4,1.066]
[1720569942345,0.52648564,3069.3,3068.4,1.066]
[1720569942484,3.52648564,3069.3,3068.4,1.066]
[1720569942830,3.0,3069.3,3068.4,1.066]
[1720569943275,4.066,3069.3,3068.4,1.066]
[1720569943439,0.72663381,3069.2,3068.4,1.066]
[1720569944161,1.25317739,3069.2,3068.4,1.066]
[1720569944321,2.3648,3069.1,3068.2,1.066]
[1720569944522,5.3648,3069.1,3068.2,1.066]
[1720569944761,0.55,3069.0,3068.0,1.066]
[1720569944954,4.15914338,3069.0,3068.0,1.066]
[1720569946224,2.4724,3068.9,3068.0,1.066]
[1720569946438,5.4724,3068.9,3068.0,1.066]
[1720569946625,0.96315434,3068.8,3068.0,1.066]
[1720569948929,0.96315434,3068.8,3067.9,2.3129]
[1720569949239,2.4724,3068.3,3067.4,1.066]
[1720569949631,5.4724,3068.3,3067.4,1.066]
[1720569950475,1.066,3067.9,3067.3,0.1077557]
[1720569950680,2.2794,3067.8,3067.3,0.1077557]
[1720569950878,0.33454,3067.7,3067.3,0.1077557]
[1720569951080,3.33454,3067.7,3067.3,0.1077557]
[1720569951283,3.0,3067.7,3067.3,0.1077557]
[1720569951437,2.2794,3067.8,3067.3,1.1737557]
[1720569951870,2.2794,3067.8,3067.3,0.1077557]
[1720569953574,3.0,3068.1,3067.3,1.1737557]
[1720569954445,3.59763,3068.1,3067.3,1.1737557]
[1720569954670,3.0,3068.1,3067.3,1.1737557]
[1720569955380,5.4139,3068.1,3067.5,1.066]
[1720569955684,3.0,3068.0,3067.5,1.066]
[1720569956042,5.3548,3068.4,3067.5,1.066]
[1720569958289,3.0,3068.4,3067.6,2.2734]
[1720569958485,3.3265,3068.6,3067.6,2.60734]
[1720569958689,0.55,3068.5,3067.6,2.60734]
[1720569960258,3.3265,3068.6,3067.6,2.60734]
[1720569960458,1.066,3068.9,3067.8,1.066]
[1720569960963,1.066,3068.9,3068.0,1.066]
[1720569961576,1.066,3068.9,3067.8,1.066]
[1720569961963,0.55,3068.8,3067.8,1.066]
[1720569962171,0.4616,3068.7,3067.8,1.066]
[1720569962484,3.0,3068.9,3068.1,2.3525]
[1720569962677,2.4899,3069.0,3068.1,2.3525]
[1720569962875,3.427,3068.9,3067.8,1.066]
[1720569963195,3.0,3068.8,3067.8,1.066]
[1720569964986,3.0,3068.8,3068.0,1.066]
[1720569965288,0.5236,3068.7,3068.0,1.066]
[1720569965487,3.427,3068.9,3068.0,1.066]
[1720569965488,3.0,3068.8,3068.0,1.066]
[1720569965689,3.0,3068.8,3067.8,1.066]
[1720569966100,3.3853,3068.7,3067.3,10.0050557]
[1720569966260,6.438,3068.8,3067.3,10.0050557]
[1720569966261,2.3193,3068.5,3067.5,1.066]
[1720569966466,2.3193,3068.5,3067.5,0.626]
[1720569966867,2.3193,3068.5,3067.7,1.066]
[1720569967069,0.630163,3068.4,3067.7,1.066]
[1720569967262,3.630163,3068.4,3067.7,1.066]
[1720569968204,3.630163,3068.4,3067.5,1.066]
[1720569968415,0.01641967,3067.8,3067.5,1.066]
[1720569969392,0.01641967,3067.6,3067.5,1.066]
[1720569969708,0.01641967,3067.6,3067.3,0.1077557]
[1720569970475,0.01641967,3067.4,3067.3,0.1077557]
[1720569972572,0.01641967,3067.4,3067.3,1.1737557]
[1720569973976,0.01641967,3067.4,3067.3,4.06496187]
[1720569974555,0.01641967,3067.4,3067.3,3.99977127]
[1720569976313,0.01641967,3067.4,3067.3,2.93377127]
[1720569976487,0.01641967,3067.4,3067.3,3.99977127]
[1720569976689,0.01641967,3067.4,3067.3,2.93377127]
[1720569978300,0.01641967,3067.4,3067.3,0.1077557]
[1720569989555,2.40461967,3067.4,3067.3,0.1077557]
[1720569993737,0.01641967,3067.4,3067.3,0.1077557]
[1720569999875,2.46401967,3067.4,3067.3,0.1077557]
[1720570000176,3.54115511,3067.4,3067.3,0.1077557]
[1720570000336,4.23907062,3067.4,3067.3,0.1077557]
[1720570000536,7.23907062,3067.4,3067.3,0.1077557]
[1720570000766,8.30707062,3067.4,3067.3,0.1077557]
[1720570001143,11.74507062,3067.4,3067.3,0.1077557]
[1720570001970,11.21793518,3067.4,3067.3,0.1077557]
[1720570002272,11.78679609,3067.4,3067.3,0.1077557]
[1720570002638,10.71879609,3067.4,3067.3,0.1077557]
[1720570005250,10.71878121,3067.4,3067.3,0.1077557]
[1720570006779,10.77561606,3067.4,3067.3,0.1077557]
[1720570007778,10.77561606,3067.4,3065.9,2.4547]
[1720570007985,5.19640764,3067.3,3066.0,0.24547]
[1720570008158,0.56884603,3067.2,3066.0,0.24547]
[1720570008354,0.55,3067.1,3065.9,2.4547]
[1720570008557,2.3603,3067.0,3065.9,2.4547]
[1720570008742,1.11869235,3066.9,3065.9,2.4547]
[1720570008946,0.01641967,3066.0,3065.9,2.4547]
[1720570009144,0.01641967,3066.0,3065.9,2.70017]
[1720570014377,0.17841967,3066.0,3065.9,2.70017]
[1720570016554,0.17841967,3066.0,3065.9,0.24547]
[1720570017895,0.17841967,3066.0,3065.7,2.3334]
[1720570018255,0.01641967,3065.8,3065.7,2.3334]
[1720570019906,0.01641967,3065.8,3065.3,2.495]
[1720570020521,0.01641967,3065.4,3065.3,2.495]
[1720570020704,0.01641967,3065.4,3065.3,3.0008]
[1720570021314,0.01641967,3065.4,3064.4,2.563]
[1720570021625,0.01641967,3065.4,3064.5,2.3133]
[1720570022295,0.01641967,3065.4,3064.2,2.4258341]
[1720570022494,0.01641967,3064.6,3064.2,2.4258341]
[1720570022700,0.01641967,3064.6,3064.2,2.66841751]
[1720570023398,0.01641967,3064.3,3064.2,2.66841751]
[1720570024114,0.01641967,3064.3,3064.2,5.23141751]
[1720570024688,0.01641967,3064.3,3064.2,11.49490751]
[1720570025010,0.01641967,3064.3,3064.2,14.75839751]
[1720570025186,7.46,3065.5,3064.7,3.26295]
[1720570025386,0.162,3066.0,3065.1,2.563]
[1720570025588,0.162,3066.0,3064.6,2.3119]
[1720570025823,0.162,3066.0,3064.6,4.8749]
[1720570026026,2.384,3065.9,3064.6,5.66239]
[1720570026224,2.384,3065.9,3064.3,3.73263975]
[1720570026386,8.822,3065.9,3064.3,2.2568]
[1720570026586,0.55,3065.8,3064.3,2.2568]
[1720570026827,3.0,3065.8,3064.5,2.563]
[1720570026989,3.0,3065.8,3064.6,2.2568]
[1720570027188,5.384,3065.9,3064.7,0.48198]
[1720570031829,2.4345,3066.3,3064.9,2.563]
[1720570032013,0.55,3066.2,3064.9,2.563]
[1720570032187,3.55,3066.2,3064.9,2.563]
[1720570032387,3.55,3066.2,3065.0,0.2563]
[1720570033517,2.4345,3066.1,3064.4,2.2568]
[1720570033720,0.55,3066.0,3064.4,4.8198]
[1720570034030,3.55,3066.0,3064.4,4.8198]
[1720570034819,3.0,3066.0,3064.4,8.08302]
[1720570035027,2.4345,3066.1,3064.9,2.2568]
[1720570035191,2.49131782,3066.4,3065.2,2.563]
[1720570035396,2.4345,3066.4,3065.2,2.563]
[1720570037001,2.4345,3066.4,3065.4,2.2568]
[1720570037272,2.49130718,3066.8,3065.5,0.23220385]
[1720570038137,2.4345,3066.8,3065.5,0.23220385]
[1720570041342,0.55,3066.7,3065.4,2.2568]
[1720570041544,3.55,3066.7,3065.4,2.2568]
[1720570043544,0.56903752,3066.6,3065.4,2.2568]
[1720570044410,3.0351,3066.5,3065.1,2.3268]
[1720570044617,3.56903752,3066.4,3065.1,2.3268]
[1720570044815,1.11903752,3066.3,3065.1,2.3268]
[1720570045009,1.11907131,3066.3,3065.1,2.3268]
[1720570046150,1.11907131,3066.3,3064.8,4.8493]
[1720570046151,2.4749,3066.2,3064.8,4.8493]
[1720570046452,5.9129,3066.0,3064.5,2.2863]
[1720570046618,3.56907131,3065.9,3064.5,2.2863]
[1720570046814,1.11907131,3065.8,3064.5,2.2863]
[1720570047038,0.41190713,3065.7,3064.5,2.2863]
[1720570048120,2.4712,3065.6,3064.4,2.563]
[1720570048321,0.56928693,3065.5,3064.4,2.563]
[1720570048745,3.0,3065.5,3064.4,2.563]
[1720570048949,0.56929603,3065.4,3064.4,2.563]
[1720570049149,0.56929603,3065.4,3064.4,2.83055341]
[1720570049350,3.0,3065.5,3064.4,2.83055341]
[1720570049565,3.0,3065.6,3064.5,2.3715]
[1720570049803,0.41190713,3065.7,3064.5,2.3715]
[1720570049952,1.11925048,3065.8,3064.5,2.3715]
[1720570051162,0.56925048,3065.8,3064.8,2.563]
[1720570051363,3.0,3065.9,3064.8,2.563]
[1720570051660,2.3331,3066.0,3064.8,2.563]
[1720570051884,0.56913395,3065.9,3064.9,0.2563]
[1720570052028,3.56913395,3065.9,3064.9,0.2563]
[1720570052233,0.56913395,3065.8,3064.9,0.2563]
[1720570055225,0.56917851,3065.8,3064.9,0.2563]
[1720570056376,0.56917851,3065.8,3065.0,0.28193]
[1720570058169,0.56917851,3065.8,3065.1,2.3724]
[1720570058374,7.46,3066.3,3065.2,2.62824065]
[1720570058542,7.46,3066.3,3065.4,2.3724]
[1720570058870,7.46,3066.3,3065.5,0.3089984]
[1720570059438,7.46,3066.3,3065.6,4.9354]
[1720570059629,7.46,3066.3,3065.7,0.06523105]
[1720570060071,7.46,3066.3,3065.6,4.9354]
[1720570060473,7.46,3066.3,3065.7,0.06523106]
[1720570060766,7.46,3066.3,3065.8,0.50006311]
[1720570060980,0.05681402,3066.9,3065.8,0.50006311]
[1720570061155,0.55,3066.8,3065.8,0.50006311]
[1720570061733,0.56904051,3066.9,3065.8,0.50006311]
[1720570061933,0.56902405,3066.9,3065.8,0.50006311]
[1720570063041,1.70457645,3066.9,3065.8,0.50006311]
[1720570063231,0.56902405,3066.8,3065.6,4.9354]
[1720570064440,0.56902405,3066.9,3065.6,4.9354]
[1720570064771,0.56902405,3066.9,3065.7,0.06522695]
[1720570064990,0.56902405,3066.9,3066.0,2.563]
[1720570065288,0.05679724,3067.3,3066.1,2.43761857]
[1720570065452,0.56895665,3067.5,3066.1,2.43761857]
[1720570065651,0.56895665,3067.7,3066.1,2.43761857]
[1720570065846,0.32263567,3067.6,3066.2,0.50006186]
[1720570066166,0.32263567,3067.6,3066.3,0.06521861]
[1720570066349,3.89159232,3067.6,3066.3,0.0652186]
[1720570066688,0.56895665,3067.5,3066.3,0.0652186]
[1720570066850,0.56895665,3067.5,3066.2,0.56528044]
[1720570067053,0.56895665,3067.5,3066.4,2.2937]
[1720570067378,0.89159232,3067.6,3066.4,4.92191512]
[1720570067555,0.56895665,3067.9,3066.4,4.92191512]
[1720570068739,0.56891097,3067.9,3066.4,4.92191512]
[1720570068947,0.56891097,3067.9,3066.9,2.3534]
[1720570069173,0.56886239,3068.1,3066.9,2.3534]
[1720570069375,1.14415239,3068.1,3066.9,2.3534]
[1720570069845,0.56883447,3068.0,3066.9,2.3534]
[1720570070204,0.56883447,3068.0,3066.9,2.41860528]
[1720570070342,3.57529,3068.1,3066.9,2.41860528]